[Event "African Online-ch U20-Open 2021"]
[Site "Online"]
[Date "2021.02.01"]
[Round "7.17"]
[White "Mcligeyo, Robert"]
[Black "Karania, Hardiv"]
[Result "1-0"]
[ECO "C41"]
[WhiteElo "1688"]
[BlackElo "1317"]
[Annotator "NA RC"]
[PlyCount "75"]
[EventDate "2021.02.01"]
[EventType "swiss"]
[EventCountry "NET"]
[SourceTitle "playchess.com"]
[Source "ChessBase"]
[SourceQuality "1"]
[TimeControl "1500+10"]

1. e4 {[%emt 0:00:00]} e5 {[%emt 0:00:08]} 2. Nf3 {[%emt 0:00:04]} d6 {[%emt 0:00:24]} 3. d4 {[%emt 0:00:06]} Nd7 {[%emt 0:00:14]} 4. Bc4 {[%emt 0:00:04]} h6 {[%emt 0:00:07]} 5. Nc3 {[%emt 0:00:06]} Ngf6 {[%emt 0:00:07]} 6. Be3 {[%emt 0:00:03]} Be7 {[%emt 0:00:05]} 7. O-O {[%emt 0:00:05]} O-O {[%emt 0:00:32]} 8. Qd2 {[%emt 0:00:04]} a6 {[%emt 0:00:48]} 9. a4 {[%emt 0:00:09]} c6 {[%emt 0:00:20]} 10. Rfe1 {[%emt 0:00:17]} Ng4 {[%emt 0:00:54]} 11. h3 {[%emt 0:00:30]} Nxe3 {[%emt 0:00:04]} 12. Qxe3 {[%emt 0:00:03]} b5 {[%emt 0:00:09]} 13. axb5 {[%emt 0:00:04]} cxb5 {[%emt 0:00:44]} 14. Bxb5 {[%emt 0:00:05]} Bb7 {[%emt 0:00:58]} 15. Bc4 {[%emt 0:00:10]} Qc7 {[%emt 0:00:42]} 16. Bb3 {[%emt 0:00:03]} Nb6 {[%emt 0:00:58]} 17. Qe2 {[%emt 0:00:34]} Rac8 {[%emt 0:00:31]} 18. Rad1 {[%emt 0:00:07]} Kh8 {[%emt 0:00:49]} 19. dxe5 {[%emt 0:01:00]} dxe5 {[%emt 0:00:11]} 20. Nd5 {[%emt 0:00:03]} Nxd5 {[%emt 0:00:15]} 21. exd5 {[%emt 0:00:03]} Bd6 {[%emt 0:00:29]} 22. Nxe5 {[%emt 0:00:58]} Rce8 {[%emt 0:00:24]} 23. f4 {[%emt 0:00:05]} f6 {[%emt 0:00:06]} 24. Ng6+ {[%emt 0:00:09]} Kg8 {[%emt 0:00:06]} 25. Qg4 {[%emt 0:00:28]} Rxe1+ {[%emt 0:02:28]} 26. Rxe1 {[%emt 0:00:05]} Rd8 {[%emt 0:00:38]} 27. Kh1 {[%emt 0:00:33]} Bc8 {[%emt 0:00:15]} 28. Qf3 {[%emt 0:00:19]} Bf5 {[%emt 0:00:23]} 29. Nh4 {[%emt 0:00:09]} Bxc2 {[%emt 0:00:09]} 30. Rc1 {[%emt 0:04:03]} Qa5 {[%emt 0:10:43]} 31. Bxc2 {[%emt 0:00:26]} Qd2 {[%emt 0:00:09]} 32. Qd1 {[%emt 0:00:12]} Qxf4 {[%emt 0:00:17]} 33. Nf3 {[%emt 0:00:03]} Re8 {[%emt 0:01:58]} 34. Qd2 {[%emt 0:00:17]} Qg3 {[%emt 0:00:59]} 35. Re1 {[%emt 0:00:25]} Rb8 {[%emt 0:00:33]} 36. Qe2 {[%emt 0:02:06]} Kf8 {[%emt 0:01:49]} 37. Bh7 {[%emt 0:00:40]} Bb4 {[%emt 0:00:15]} 38. Qe6 {[%emt 0:02:42]} 1-0

[Event "African Online-ch U20-Open 2021"]
[Site "Online"]
[Date "2021.02.01"]
[Round "7.19"]
[White "Meise, Keagen"]
[Black "Soojay, Jorah"]
[Result "1-0"]
[ECO "D20"]
[WhiteElo "1200"]
[BlackElo "1478"]
[Annotator "NA RC"]
[PlyCount "105"]
[EventDate "2021.02.01"]
[EventType "swiss"]
[EventCountry "NET"]
[SourceTitle "playchess.com"]
[Source "ChessBase"]
[SourceQuality "1"]
[TimeControl "1500+10"]

1. d4 {[%emt 0:00:00]} d5 {[%emt 0:00:08]} 2. c4 {[%emt 0:00:03]} dxc4 {[%emt 0:00:08]} 3. e3 {[%emt 0:00:03]} Nf6 {[%emt 0:00:03]} 4. Bxc4 {[%emt 0:00:02]} c6 {[%emt 0:00:05]} 5. h3 {[%emt 0:00:07]} Bf5 {[%emt 0:00:07]} 6. Qb3 {[%emt 0:00:05]} e6 {[%emt 0:01:17]} 7. Qxb7 {[%emt 0:00:03]} Nbd7 {[%emt 0:00:02]} 8. Nf3 {[%emt 0:00:32]} Be4 {[%emt 0:00:08]} 9. Nbd2 {[%emt 0:00:25]} Bd5 {[%emt 0:00:25]} 10. Bxd5 {[%emt 0:00:11]} cxd5 {[%emt 0:00:04]} 11. O-O {[%emt 0:00:05]} Nb6 {[%emt 0:00:05]} 12. Ne5 {[%emt 0:00:10]} Be7 {[%emt 0:00:21]} 13. Nc6 {[%emt 0:00:21]} Qd7 {[%emt 0:00:06]} 14. Qxd7+ {[%emt 0:00:05]} Kxd7 {[%emt 0:00:05]} 15. Nxe7 {[%emt 0:00:33]} Kxe7 {[%emt 0:00:04]} 16. b3 {[%emt 0:00:01]} Rhc8 {[%emt 0:00:06]} 17. Ba3+ {[%emt 0:00:08]} Kd7 {[%emt 0:00:02]} 18. Rac1 {[%emt 0:00:35]} h6 {[%emt 0:01:09]} 19. Nf3 {[%emt 0:00:37]} Ne4 {[%emt 0:00:12]} 20. Bc5 {[%emt 0:02:22]} f6 {[%emt 0:00:08]} 21. a4 {[%emt 0:00:21]} Ke8 {[%emt 0:01:05]} 22. a5 {[%emt 0:03:28]} Nd7 {[%emt 0:00:06]} 23. b4 {[%emt 0:00:03]} a6 {[%emt 0:00:11]} 24. Rc2 {[%emt 0:00:51]} Rc6 {[%emt 0:05:05]} 25. Rfc1 {[%emt 0:00:39]} Rac8 {[%emt 0:00:06]} 26. Ne1 {[%emt 0:00:13]} e5 {[%emt 0:00:20]} 27. Nd3 {[%emt 0:00:10]} Nexc5 {[%emt 0:01:36]} 28. Nxc5 {[%emt 0:00:11]} e4 {[%emt 0:00:35]} 29. Kh2 {[%emt 0:00:59]} Kf7 {[%emt 0:00:18]} 30. Kg3 {[%emt 0:00:35]} g5 {[%emt 0:00:20]} 31. Rb2 {[%emt 0:02:38]} Nxc5 {[%emt 0:02:34]} 32. bxc5 {[%emt 0:00:13]} f5 {[%emt 0:00:19]} 33. Rcb1 {[%emt 0:00:38]} Kg6 {[%emt 0:02:14]} 34. Rb6 {[%emt 0:00:13]} Kh5 {[%emt 0:00:21]} 35. Rxc6 {[%emt 0:00:06]} Rxc6 {[%emt 0:00:06]} 36. Rb6 {[%emt 0:00:03]} Rc8 {[%emt 0:00:13]} 37. Rxa6 {[%emt 0:00:05]} Rf8 {[%emt 0:00:07]} 38. Re6 {[%emt 0:00:23]} f4+ {[%emt 0:00:07]} 39. exf4 {[%emt 0:00:02]} gxf4+ {[%emt 0:00:03]} 40. Kh2 {[%emt 0:00:02]} Kg5 {[%emt 0:02:39]} 41. a6 {[%emt 0:01:18]} f3 {[%emt 0:01:34]} 42. gxf3 {[%emt 0:02:27]} Rxf3 {[%emt 0:00:10]} 43. Kg2 {[%emt 0:00:12]} Kf5 {[%emt 0:00:29]} 44. a7 {[%emt 0:01:15]} Ra3 {[%emt 0:00:06]} 45. Re7 {[%emt 0:00:03]} Kf6 {[%emt 0:00:12]} 46. Rb7 {[%emt 0:01:01]} Ra2 {[%emt 0:00:06]} 47. c6 {[%emt 0:01:00]} e3 {[%emt 0:00:05]} 48. c7 {[%emt 0:01:31]} e2 {[%emt 0:00:05]} 49. c8=Q {[%emt 0:00:03]} e1=Q {[%emt 0:00:03]} 50. Qf8+ {[%emt 0:00:02]} Kg5 {[%emt 0:00:14]} 51. Rg7+ {[%emt 0:00:11]} Kh5 {[%emt 0:00:19]} 52. Qf5+ {[%emt 0:00:03]} Kh4 {[%emt 0:00:04]} 53. Rg4# {[%emt 0:00:04]} 1-0

[Event "African Online-ch U20-Open 2021"]
[Site "Online"]
[Date "2021.02.01"]
[Round "7.20"]
[White "Belattar, Mohamed Walid"]
[Black "Masaiti, Gideon"]
[Result "0-1"]
[ECO "E01"]
[WhiteElo "1214"]
[BlackElo "1442"]
[Annotator "NA RC"]
[PlyCount "100"]
[EventDate "2021.02.01"]
[EventType "swiss"]
[EventCountry "NET"]
[SourceTitle "playchess.com"]
[Source "ChessBase"]
[SourceQuality "1"]
[TimeControl "1500+10"]

1. d4 {[%emt 0:00:00]} e6 {[%emt 0:00:02]} 2. Nf3 {[%emt 0:00:04]} d5 {[%emt 0:00:02]} 3. g3 {[%emt 0:00:03]} Nf6 {[%emt 0:00:07]} 4. Bg2 {[%emt 0:00:02]} c5 {[%emt 0:00:08]} 5. O-O {[%emt 0:00:07]} cxd4 {[%emt 0:00:09]} 6. Nxd4 {[%emt 0:00:06]} Be7 {[%emt 0:00:02]} 7. c4 {[%emt 0:00:15]} Nc6 {[%emt 0:00:16]} 8. Nxc6 {[%emt 0:00:49]} bxc6 {[%emt 0:00:05]} 9. Nc3 {[%emt 0:00:09]} O-O {[%emt 0:00:07]} 10. Bf4 {[%emt 0:00:40]} Ba6 {[%emt 0:00:21]} 11. cxd5 {[%emt 0:00:42]} cxd5 {[%emt 0:00:04]} 12. Qa4 {[%emt 0:00:11]} Qb6 {[%emt 0:00:23]} 13. Rfb1 {[%emt 0:03:51]} Bc5 {[%emt 0:00:22]} 14. e3 {[%emt 0:01:11]} Bd3 {[%emt 0:02:43]} 15. b4 {[%emt 0:07:33]} Bxb1 {[%emt 0:00:41]} 16. bxc5 {[%emt 0:00:29]} Qb2 {[%emt 0:00:29]} 17. Rxb1 {[%emt 0:00:51]} Qxc3 {[%emt 0:00:06]} 18. c6 {[%emt 0:00:14]} Rfc8 {[%emt 0:00:27]} 19. c7 {[%emt 0:00:13]} Ne8 {[%emt 0:00:52]} 20. Rb8 {[%emt 0:03:23]} Nxc7 {[%emt 0:00:12]} 21. Rxc8+ {[%emt 0:00:31]} Rxc8 {[%emt 0:00:08]} 22. Qd7 {[%emt 0:00:06]} Ne8 {[%emt 0:00:11]} 23. a4 {[%emt 0:01:50]} Qc6 {[%emt 0:00:18]} 24. Qxc6 {[%emt 0:00:49]} Rxc6 {[%emt 0:00:03]} 25. Bf1 {[%emt 0:00:08]} Nc7 {[%emt 0:00:09]} 26. Bxc7 {[%emt 0:00:04]} Rxc7 {[%emt 0:00:03]} 27. Bb5 {[%emt 0:00:09]} Kf8 {[%emt 0:00:02]} 28. Kf1 {[%emt 0:00:04]} Ke7 {[%emt 0:00:03]} 29. Ke2 {[%emt 0:00:04]} Kd6 {[%emt 0:00:03]} 30. Kd3 {[%emt 0:00:04]} Rc1 {[%emt 0:00:12]} 31. Kd2 {[%emt 0:00:21]} Rb1 {[%emt 0:00:03]} 32. h4 {[%emt 0:00:40]} Rxb5 {[%emt 0:00:06]} 33. axb5 {[%emt 0:00:04]} Kc5 {[%emt 0:00:03]} 34. Kc3 {[%emt 0:00:03]} Kxb5 {[%emt 0:00:03]} 35. Kb3 {[%emt 0:00:02]} a5 {[%emt 0:00:02]} 36. Kc3 {[%emt 0:00:07]} a4 {[%emt 0:00:04]} 37. Kb2 {[%emt 0:00:07]} Kb4 {[%emt 0:00:02]} 38. Kc2 {[%emt 0:00:09]} a3 {[%emt 0:00:03]} 39. Kb1 {[%emt 0:00:14]} Kb3 {[%emt 0:00:03]} 40. Ka1 {[%emt 0:00:20]} a2 {[%emt 0:00:02]} 41. f4 {[%emt 0:00:05]} Ka3 {[%emt 0:00:03]} 42. g4 {[%emt 0:00:03]} h6 {[%emt 0:00:05]} 43. h5 {[%emt 0:00:07]} f6 {[%emt 0:00:03]} 44. g5 {[%emt 0:02:28]} fxg5 {[%emt 0:00:19]} 45. fxg5 {[%emt 0:00:06]} hxg5 {[%emt 0:00:06]} 46. e4 {[%emt 0:00:05]} g4 {[%emt 0:00:20]} 47. h6 {[%emt 0:00:19]} gxh6 {[%emt 0:00:45]} 48. exd5 {[%emt 0:00:21]} g3 {[%emt 0:00:10]} 49. dxe6 {[%emt 0:00:04]} g2 {[%emt 0:00:04]} 50. e7 {[%emt 0:00:03]} g1=R# {[%emt 0:00:04]} 0-1

[Event "African Online-ch U20-Open 2021"]
[Site "Online"]
[Date "2021.02.01"]
[Round "8.6"]
[White "Vasco Mateus Felizardo Viageir"]
[Black "Bidi, Abdeljalil"]
[Result "1-0"]
[ECO "C56"]
[WhiteElo "1862"]
[BlackElo "1750"]
[Annotator "NA RC"]
[PlyCount "125"]
[EventDate "2021.02.01"]
[EventType "swiss"]
[EventCountry "NET"]
[SourceTitle "playchess.com"]
[Source "ChessBase"]
[SourceQuality "1"]
[TimeControl "1500+10"]

1. e4 {[%emt 0:00:00]} e5 {[%emt 0:00:03]} 2. Nf3 {[%emt 0:00:03]} Nc6 {[%emt 0:00:01]} 3. Bc4 {[%emt 0:00:04]} Bc5 {[%emt 0:00:02]} 4. O-O {[%emt 0:00:03]} Nf6 {[%emt 0:00:02]} 5. c3 {[%emt 0:00:02]} O-O {[%emt 0:00:24]} 6. d4 {[%emt 0:00:04]} exd4 {[%emt 0:00:02]} 7. cxd4 {[%emt 0:00:01]} Bb6 {[%emt 0:00:01]} 8. e5 {[%emt 0:00:09]} d5 {[%emt 0:00:21]} 9. exf6 {[%emt 0:00:20]} dxc4 {[%emt 0:00:02]} 10. fxg7 {[%emt 0:00:01]} Re8 {[%emt 0:00:03]} 11. d5 {[%emt 0:00:04]} Ne5 {[%emt 0:00:15]} 12. Nxe5 {[%emt 0:00:01]} Rxe5 {[%emt 0:00:06]} 13. Nc3 {[%emt 0:00:02]} Ba5 {[%emt 0:00:35]} 14. f4 {[%emt 0:01:00]} Re8 {[%emt 0:00:54]} 15. Kh1 {[%emt 0:00:27]} Qf6 {[%emt 0:00:24]} 16. Bd2 {[%emt 0:00:32]} a6 {[%emt 0:00:44]} 17. a4 {[%emt 0:00:25]} Bf5 {[%emt 0:00:08]} 18. Qf3 {[%emt 0:01:24]} Qd4 {[%emt 0:01:54]} 19. Be1 {[%emt 0:00:57]} Bd3 {[%emt 0:00:59]} 20. Bf2 {[%emt 0:00:11]} Qxg7 {[%emt 0:00:11]} 21. Rfc1 {[%emt 0:01:20]} Bxc3 {[%emt 0:01:06]} 22. bxc3 {[%emt 0:00:03]} Re2 {[%emt 0:00:22]} 23. Bd4 {[%emt 0:00:20]} Qg6 {[%emt 0:01:34]} 24. Re1 {[%emt 0:00:40]} Rae8 {[%emt 0:00:13]} 25. Rxe2 {[%emt 0:00:15]} Rxe2 {[%emt 0:00:03]} 26. d6 {[%emt 0:00:35]} cxd6 {[%emt 0:03:13]} 27. Qxb7 {[%emt 0:06:47]} f6 {[%emt 0:00:58]} 28. Qd5+ {[%emt 0:00:17]} Kg7 {[%emt 0:00:10]} 29. f5 {[%emt 0:00:40]} Qg5 {[%emt 0:06:47]} 30. Qb7+ {[%emt 0:00:43]} Kh6 {[%emt 0:00:22]} 31. Qf3 {[%emt 0:00:31]} d5 {[%emt 0:01:44]} 32. Kg1 {[%emt 0:00:49]} Kg7 {[%emt 0:03:16]} 33. a5 {[%emt 0:01:40]} Qh4 {[%emt 0:01:03]} 34. Bf2 {[%emt 0:00:31]} Qg5 {[%emt 0:00:40]} 35. Bd4 {[%emt 0:03:15]} Qxf5 {[%emt 0:01:17]} 36. Qg3+ {[%emt 0:00:10]} Kf7 {[%emt 0:00:12]} 37. Qc7+ {[%emt 0:00:33]} Re7 {[%emt 0:00:05]} 38. Qd6 {[%emt 0:00:21]} Qe6 {[%emt 0:00:37]} 39. Qg3 {[%emt 0:00:31]} Qe4 {[%emt 0:00:14]} 40. h4 {[%emt 0:00:12]} Qg6 {[%emt 0:00:02]} 41. Qf4 {[%emt 0:00:40]} Be4 {[%emt 0:00:06]} 42. g4 {[%emt 0:00:07]} Bd3 {[%emt 0:00:02]} 43. g5 {[%emt 0:00:18]} f5 {[%emt 0:00:17]} 44. Bc5 {[%emt 0:00:18]} Rd7 {[%emt 0:00:08]} 45. Qe5 {[%emt 0:00:05]} Be4 {[%emt 0:00:12]} 46. Bd4 {[%emt 0:00:09]} Re7 {[%emt 0:00:20]} 47. Qf6+ {[%emt 0:00:12]} Qxf6 {[%emt 0:00:02]} 48. gxf6 {[%emt 0:00:02]} Re8 {[%emt 0:00:17]} 49. Kf2 {[%emt 0:00:02]} Rb8 {[%emt 0:00:04]} 50. Ke3 {[%emt 0:00:05]} Rg8 {[%emt 0:00:09]} 51. Kf4 {[%emt 0:00:03]} Ke6 {[%emt 0:00:05]} 52. Ra4 {[%emt 0:00:17]} Rb8 {[%emt 0:00:31]} 53. h5 {[%emt 0:00:26]} Rb1 {[%emt 0:00:08]} 54. Kg5 {[%emt 0:00:12]} Kf7 {[%emt 0:00:11]} 55. Kh6 {[%emt 0:00:06]} Bf3 {[%emt 0:00:07]} 56. Kg5 {[%emt 0:01:56]} Be2 {[%emt 0:00:21]} 57. Ra2 {[%emt 0:00:12]} Bd3 {[%emt 0:00:04]} 58. Rg2 {[%emt 0:00:08]} Rb7 {[%emt 0:00:10]} 59. Kh6 {[%emt 0:00:08]} Kf8 {[%emt 0:00:06]} 60. Bc5+ {[%emt 0:00:06]} Ke8 {[%emt 0:00:14]} 61. Rg8+ {[%emt 0:00:02]} Kd7 {[%emt 0:00:03]} 62. Rg7+ {[%emt 0:00:09]} Ke6 {[%emt 0:00:07]} 63. Rxb7 {[%emt 0:00:04]} 1-0

[Event "African Online-ch U20-Open 2021"]
[Site "Online"]
[Date "2021.02.01"]
[Round "8.7"]
[White "Mena, Martin"]
[Black "Joao Farisse"]
[Result "0-1"]
[ECO "D90"]
[WhiteElo "1776"]
[BlackElo "1574"]
[Annotator "NA RC"]
[PlyCount "64"]
[EventDate "2021.02.01"]
[EventType "swiss"]
[EventCountry "NET"]
[SourceTitle "playchess.com"]
[Source "ChessBase"]
[SourceQuality "1"]
[TimeControl "1500+10"]

1. d4 {[%emt 0:00:00]} d5 {[%emt 0:00:15]} 2. Nf3 {[%emt 0:00:05]} Nf6 {[%emt 0:00:03]} 3. c4 {[%emt 0:00:13]} c6 {[%emt 0:00:19]} 4. Nc3 {[%emt 0:00:06]} g6 {[%emt 0:00:20]} 5. cxd5 {[%emt 0:00:59]} cxd5 {[%emt 0:00:08]} 6. Bf4 {[%emt 0:00:08]} Bg7 {[%emt 0:00:21]} 7. e3 {[%emt 0:00:10]} O-O {[%emt 0:00:03]} 8. Bd3 {[%emt 0:00:11]} Nc6 {[%emt 0:00:26]} 9. O-O {[%emt 0:00:46]} a6 {[%emt 0:00:54]} 10. Ne5 {[%emt 0:00:49]} Nh5 {[%emt 0:00:37]} 11. Nxc6 {[%emt 0:00:47]} bxc6 {[%emt 0:00:05]} 12. Bg3 {[%emt 0:00:18]} Nxg3 {[%emt 0:00:12]} 13. hxg3 {[%emt 0:00:07]} e5 {[%emt 0:00:03]} 14. dxe5 {[%emt 0:00:31]} Bxe5 {[%emt 0:00:05]} 15. Rc1 {[%emt 0:00:07]} Bd7 {[%emt 0:02:54]} 16. Na4 {[%emt 0:02:58]} h5 {[%emt 0:01:42]} 17. b3 {[%emt 0:02:02]} h4 {[%emt 0:01:45]} 18. gxh4 {[%emt 0:02:13]} Qxh4 {[%emt 0:00:06]} 19. f4 {[%emt 0:00:10]} Bc7 {[%emt 0:01:17]} 20. Qc2 {[%emt 0:06:39]} Rae8 {[%emt 0:01:38]} 21. Qf2 {[%emt 0:02:19]} Qh5 {[%emt 0:01:41]} 22. Nc5 {[%emt 0:03:34]} Bc8 {[%emt 0:01:37]} 23. Bxa6 {[%emt 0:02:25]} Bxa6 {[%emt 0:00:34]} 24. Nxa6 {[%emt 0:00:07]} Bb6 {[%emt 0:00:19]} 25. Rfe1 {[%emt 0:00:20]} d4 {[%emt 0:02:21]} 26. Nb4 {[%emt 0:01:00]} dxe3 {[%emt 0:00:30]} 27. Qe2 {[%emt 0:00:08]} Qh4 {[%emt 0:00:59]} 28. Nxc6 {[%emt 0:00:16]} Qf2+ {[%emt 0:00:12]} 29. Kh1 {[%emt 0:00:01]} Kg7 {[%emt 0:00:08]} 30. Qxf2 {[%emt 0:00:20]} Rh8+ {[%emt 0:00:19]} 31. Kg1 {[%emt 0:00:03]} exf2+ {[%emt 0:00:04]} 32. Kf1 {[%emt 0:00:03]} Rh1# {[%emt 0:00:03]} 0-1

[Event "African Online-ch U20-Open 2021"]
[Site "Online"]
[Date "2021.02.01"]
[Round "8.8"]
[White "Shah, Darshan Samir"]
[Black "Celso Andre Manjate"]
[Result "1-0"]
[ECO "A48"]
[WhiteElo "1502"]
[BlackElo "1721"]
[Annotator "NA RC"]
[PlyCount "119"]
[EventDate "2021.02.01"]
[EventType "swiss"]
[EventCountry "NET"]
[SourceTitle "playchess.com"]
[Source "ChessBase"]
[SourceQuality "1"]
[TimeControl "1500+10"]

1. Nf3 {[%emt 0:00:00]} Nf6 {[%emt 0:00:27]} 2. d4 {[%emt 0:00:07]} g6 {[%emt 0:00:20]} 3. Bg5 {[%emt 0:00:09]} Bg7 {[%emt 0:00:02]} 4. Nbd2 {[%emt 0:00:07]} O-O {[%emt 0:00:07]} 5. c3 {[%emt 0:00:12]} d6 {[%emt 0:00:03]} 6. e3 {[%emt 0:00:08]} Nc6 {[%emt 0:00:07]} 7. Bd3 {[%emt 0:00:06]} e5 {[%emt 0:00:06]} 8. Ne4 {[%emt 0:00:20]} d5 {[%emt 0:02:22]} 9. Nxf6+ {[%emt 0:00:10]} Bxf6 {[%emt 0:00:03]} 10. Bxf6 {[%emt 0:00:03]} Qxf6 {[%emt 0:00:04]} 11. dxe5 {[%emt 0:00:08]} Nxe5 {[%emt 0:00:03]} 12. Nxe5 {[%emt 0:00:52]} Qxe5 {[%emt 0:00:04]} 13. Qf3 {[%emt 0:00:11]} c6 {[%emt 0:00:14]} 14. O-O-O {[%emt 0:01:21]} a5 {[%emt 0:00:29]} 15. h4 {[%emt 0:00:15]} b5 {[%emt 0:00:30]} 16. Bc2 {[%emt 0:01:20]} b4 {[%emt 0:01:22]} 17. cxb4 {[%emt 0:00:03]} axb4 {[%emt 0:00:53]} 18. Kb1 {[%emt 0:00:09]} Be6 {[%emt 0:03:08]} 19. h5 {[%emt 0:05:49]} c5 {[%emt 0:00:27]} 20. g4 {[%emt 0:02:39]} Ra7 {[%emt 0:09:19]} 21. Qh3 {[%emt 0:04:43]} Rfa8 {[%emt 0:00:13]} 22. hxg6 {[%emt 0:05:20]} fxg6 {[%emt 0:00:15]} 23. Kc1 {[%emt 0:01:07]} Qg7 {[%emt 0:04:39]} 24. Bb1 {[%emt 0:00:15]} c4 {[%emt 0:01:00]} 25. Rd4 {[%emt 0:00:28]} b3 {[%emt 0:00:36]} 26. axb3 {[%emt 0:00:12]} cxb3 {[%emt 0:00:05]} 27. Qh4 {[%emt 0:00:39]} Rc8+ {[%emt 0:00:28]} 28. Kd2 {[%emt 0:00:10]} Rac7 {[%emt 0:00:38]} 29. Bd3 {[%emt 0:00:15]} Ra7 {[%emt 0:00:30]} 30. f4 {[%emt 0:00:35]} Rf7 {[%emt 0:00:37]} 31. Rc1 {[%emt 0:00:21]} Rxc1 {[%emt 0:00:04]} 32. Kxc1 {[%emt 0:00:03]} Rc7+ {[%emt 0:00:03]} 33. Kd2 {[%emt 0:00:08]} Rc8 {[%emt 0:00:04]} 34. f5 {[%emt 0:00:08]} gxf5 {[%emt 0:00:04]} 35. gxf5 {[%emt 0:00:08]} Qg2+ {[%emt 0:00:05]} 36. Kd1 {[%emt 0:00:16]} Qg1+ {[%emt 0:00:16]} 37. Ke2 {[%emt 0:00:04]} Qg2+ {[%emt 0:00:42]} 38. Qf2 {[%emt 0:00:05]} Qxf2+ {[%emt 0:00:05]} 39. Kxf2 {[%emt 0:00:02]} Bf7 {[%emt 0:00:02]} 40. Rb4 {[%emt 0:00:20]} Rc2+ {[%emt 0:00:10]} 41. Bxc2 {[%emt 0:00:21]} bxc2 {[%emt 0:00:05]} 42. Rb8+ {[%emt 0:00:02]} Kg7 {[%emt 0:00:17]} 43. Rc8 {[%emt 0:00:05]} Kf6 {[%emt 0:00:03]} 44. Rxc2 {[%emt 0:00:08]} Kxf5 {[%emt 0:00:02]} 45. b4 {[%emt 0:00:07]} Be8 {[%emt 0:00:11]} 46. Rc8 {[%emt 0:00:19]} Bd7 {[%emt 0:00:10]} 47. Rd8 {[%emt 0:00:02]} Ke6 {[%emt 0:00:21]} 48. Rh8 {[%emt 0:00:26]} Kd6 {[%emt 0:00:05]} 49. Rxh7 {[%emt 0:00:06]} Bf5 {[%emt 0:00:07]} 50. Rh6+ {[%emt 0:00:19]} Kc7 {[%emt 0:00:03]} 51. b5 {[%emt 0:00:08]} Bd3 {[%emt 0:00:06]} 52. b6+ {[%emt 0:00:18]} Kb7 {[%emt 0:00:05]} 53. Rd6 {[%emt 0:00:11]} Bc4 {[%emt 0:00:04]} 54. Ke1 {[%emt 0:00:13]} Ka6 {[%emt 0:01:01]} 55. Kd2 {[%emt 0:00:06]} Kb7 {[%emt 0:00:04]} 56. Kc3 {[%emt 0:00:05]} Ba2 {[%emt 0:00:05]} 57. Kd4 {[%emt 0:00:08]} Bb3 {[%emt 0:00:18]} 58. Kc5 {[%emt 0:00:12]} Kc8 {[%emt 0:00:31]} 59. Kc6 {[%emt 0:00:09]} Ba4+ {[%emt 0:00:05]} 60. Kxd5 {[%emt 0:00:02]} 1-0

[Event "African Online-ch U20-Open 2021"]
[Site "Online"]
[Date "2021.02.01"]
[Round "8.9"]
[White "Sparg, Nathan"]
[Black "Fourie, Brandon"]
[Result "0-1"]
[ECO "D97"]
[WhiteElo "1413"]
[BlackElo "1583"]
[Annotator "NA RC"]
[PlyCount "66"]
[EventDate "2021.02.01"]
[EventType "swiss"]
[EventCountry "NET"]
[SourceTitle "playchess.com"]
[Source "ChessBase"]
[SourceQuality "1"]
[TimeControl "1500+10"]

1. d4 {[%emt 0:00:00]} Nf6 {[%emt 0:00:07]} 2. c4 {[%emt 0:00:04]} g6 {[%emt 0:00:03]} 3. Nc3 {[%emt 0:00:06]} d5 {[%emt 0:00:10]} 4. Nf3 {[%emt 0:00:10]} Bg7 {[%emt 0:00:12]} 5. Qb3 {[%emt 0:00:10]} dxc4 {[%emt 0:02:53]} 6. Qxc4 {[%emt 0:00:07]} O-O {[%emt 0:00:29]} 7. e4 {[%emt 0:00:23]} Nc6 {[%emt 0:02:10]} 8. d5 {[%emt 0:01:16]} Na5 {[%emt 0:04:07]} 9. Qa4 {[%emt 0:04:27]} c6 {[%emt 0:03:12]} 10. Bd2 {[%emt 0:02:21]} cxd5 {[%emt 0:01:25]} 11. exd5 {[%emt 0:01:31]} Bd7 {[%emt 0:03:14]} 12. Bb5 {[%emt 0:00:37]} Bxb5 {[%emt 0:00:50]} 13. Qxb5 {[%emt 0:01:15]} a6 {[%emt 0:01:07]} 14. Qd3 {[%emt 0:03:20]} b5 {[%emt 0:01:11]} 15. O-O {[%emt 0:00:41]} Nc4 {[%emt 0:00:08]} 16. b3 {[%emt 0:01:27]} Nxd2 {[%emt 0:00:03]} 17. Qxd2 {[%emt 0:00:38]} b4 {[%emt 0:00:45]} 18. Ne2 {[%emt 0:01:27]} Qxd5 {[%emt 0:00:24]} 19. Qxb4 {[%emt 0:00:34]} a5 {[%emt 0:00:41]} 20. Qd4 {[%emt 0:00:25]} Qxd4 {[%emt 0:01:18]} 21. Nexd4 {[%emt 0:00:37]} Nd5 {[%emt 0:00:49]} 22. Rac1 {[%emt 0:00:13]} Rac8 {[%emt 0:00:41]} 23. Rc2 {[%emt 0:01:30]} Rxc2 {[%emt 0:00:05]} 24. Nxc2 {[%emt 0:00:03]} Rc8 {[%emt 0:00:03]} 25. Ncd4 {[%emt 0:00:31]} e5 {[%emt 0:00:12]} 26. Nb5 {[%emt 0:00:17]} Nc3 {[%emt 0:00:42]} 27. Nxc3 {[%emt 0:00:45]} Rxc3 {[%emt 0:00:04]} 28. Rb1 {[%emt 0:00:02]} Rc2 {[%emt 0:00:14]} 29. a4 {[%emt 0:00:07]} e4 {[%emt 0:00:15]} 30. Ne1 {[%emt 0:00:03]} Ra2 {[%emt 0:00:21]} 31. Kf1 {[%emt 0:00:28]} Bd4 {[%emt 0:00:09]} 32. Kg1 {[%emt 0:01:04]} Rxf2 {[%emt 0:00:13]} 33. Kh1 {[%emt 0:00:02]} Rf1# {[%emt 0:00:02]} 0-1

[Event "African Online-ch U20-Open 2021"]
[Site "Online"]
[Date "2021.02.01"]
[Round "8.11"]
[White "George Samir, David"]
[Black "Elayeb, Med Yessine"]
[Result "1-0"]
[ECO "B33"]
[WhiteElo "1775"]
[BlackElo "1666"]
[Annotator "NA RC"]
[PlyCount "47"]
[EventDate "2021.02.01"]
[EventType "swiss"]
[EventCountry "NET"]
[SourceTitle "playchess.com"]
[Source "ChessBase"]
[SourceQuality "1"]
[TimeControl "1500+10"]

1. e4 {[%emt 0:00:00]} c5 {[%emt 0:00:02]} 2. Nf3 {[%emt 0:00:04]} Nc6 {[%emt 0:00:02]} 3. d4 {[%emt 0:00:01]} cxd4 {[%emt 0:00:01]} 4. Nxd4 {[%emt 0:00:03]} Nf6 {[%emt 0:00:02]} 5. Nc3 {[%emt 0:00:02]} e5 {[%emt 0:00:02]} 6. Ndb5 {[%emt 0:00:02]} d6 {[%emt 0:00:02]} 7. Bg5 {[%emt 0:00:15]} a6 {[%emt 0:00:03]} 8. Na3 {[%emt 0:00:03]} b5 {[%emt 0:00:02]} 9. Nd5 {[%emt 0:00:03]} Be7 {[%emt 0:00:02]} 10. Bxf6 {[%emt 0:00:07]} Bxf6 {[%emt 0:00:01]} 11. c4 {[%emt 0:00:01]} b4 {[%emt 0:00:02]} 12. Nc2 {[%emt 0:00:03]} O-O {[%emt 0:00:02]} 13. h4 {[%emt 0:00:03]} a5 {[%emt 0:00:02]} 14. g3 {[%emt 0:00:12]} a4 {[%emt 0:00:11]} 15. Bg2 {[%emt 0:00:38]} Be6 {[%emt 0:00:04]} 16. O-O {[%emt 0:00:30]} b3 {[%emt 0:01:02]} 17. axb3 {[%emt 0:02:52]} axb3 {[%emt 0:00:04]} 18. Rxa8 {[%emt 0:01:00]} Qxa8 {[%emt 0:01:42]} 19. Na1 {[%emt 0:01:12]} Qa4 {[%emt 0:05:15]} 20. c5 {[%emt 0:05:32]} Nd4 {[%emt 0:01:52]} 21. c6 {[%emt 0:03:14]} Rb8 {[%emt 0:04:39]} 22. c7 {[%emt 0:00:18]} Rb7 {[%emt 0:00:07]} 23. Kh1 {[%emt 0:01:26]} Bxd5 {[%emt 0:00:04]} 24. c8=Q+ {[%emt 0:00:05]} 1-0